bitfinex/quotes_ETHUSD_20240928
["timestamp","ask_amount","ask_price","bid_price","bid_amount"]
[1727530250310,0.829,2665.6,2665.3,3.7518]
[1727530251445,0.829,2665.6,2665.2,3.75205]
[1727530251446,2.00514255,2665.6,2665.2,3.75205]
[1727530251607,2.00514255,2665.6,2665.2,3.75196]
[1727530251813,0.829,2665.6,2665.2,3.75196]
[1727530252046,0.829,2665.6,2665.3,3.7519]
[1727530252614,2.00514255,2665.6,2665.3,3.7519]
[1727530253411,0.829,2665.6,2665.3,3.7519]
[1727530256249,0.829,2665.6,2665.4,3.75177]
[1727530257314,3.93734255,2665.7,2665.4,3.75169]
[1727530259022,3.93734255,2665.7,2665.4,7.50339]
[1727530259249,3.93734255,2665.7,2665.4,3.75169]
[1727530260718,3.93734255,2665.7,2665.5,3.75163]
[1727530260912,2.7612,2665.7,2665.5,3.75163]
[1727530261162,2.0,2665.7,2665.5,3.75163]
[1727530261312,1.17614255,2665.9,2665.5,3.75153]
[1727530261647,1.17614255,2665.9,2665.6,3.75146]
[1727530262435,0.0354032,2665.8,2665.4,4.42916073]
[1727530262637,1.21154575,2665.8,2665.5,3.75163]
[1727530262838,1.21154575,2665.8,2665.6,0.44291007]
[1727530262839,0.0354032,2665.8,2665.6,0.44291007]
[1727530263055,0.0354032,2665.8,2665.5,3.75163]
[1727530263258,0.0354032,2665.8,2665.5,7.50319]
[1727530264055,1.21154575,2665.8,2665.5,7.50319]
[1727530264544,1.21154575,2665.8,2665.6,3.75145]
[1727530264731,0.0354032,2665.8,2665.6,3.75145]
[1727530264916,0.0354032,2665.8,2665.6,4.65066807]
[1727530265258,0.0354032,2665.8,2665.7,3.75135]
[1727530265563,1.17614255,2666.0,2665.8,3.75118]
[1727530265730,3.17614255,2666.1,2665.8,3.75118]
[1727530266126,1.17614255,2666.1,2665.8,3.75118]
[1727530266328,1.17614255,2666.3,2665.9,4.56224]
[1727530266558,1.17614255,2666.2,2665.9,4.126158]
[1727530266762,2.33079007,2666.4,2665.9,4.126158]
[1727530266763,1.17614255,2666.3,2665.9,4.126158]
[1727530267060,2.33079007,2666.4,2665.9,4.126158]
[1727530267061,1.17614255,2666.2,2665.9,4.126158]
[1727530267248,1.17614255,2666.3,2665.9,4.126158]
[1727530267444,4.92693255,2666.2,2665.7,3.75125]
[1727530267662,5.68960255,2666.1,2665.5,4.56272]
[1727530267833,5.68960255,2666.1,2665.6,0.76105791]
[1727530268346,0.7626,2666.1,2665.7,3.75134]
[1727530268560,1.93874255,2666.1,2665.7,3.75134]
[1727530268764,1.93874255,2666.1,2665.7,4.65885179]
[1727530269935,0.7626,2666.1,2665.7,4.65885179]
[1727530270262,1.93874255,2666.1,2665.7,4.65885179]
[1727530270554,1.93874255,2666.1,2665.3,3.0]
[1727530270555,3.75145,2665.7,2665.2,4.56323]
[1727530270753,3.75145,2665.7,2665.2,3.75203]
[1727530271066,4.92759255,2665.7,2665.3,0.75042]
[1727530271234,5.69007255,2665.8,2665.3,4.50226]
[1727530271567,3.7514,2665.7,2665.3,0.75042]
[1727530271773,0.7626,2665.5,2665.1,3.75211]
[1727530272423,0.7626,2665.5,2665.2,3.75204]
[1727530272738,0.7626,2665.5,2665.2,0.831535]
[1727530273050,4.51398,2665.7,2665.3,3.75192]
[1727530276265,4.51398,2665.7,2665.2,4.583555]
[1727530276453,4.51398,2665.7,2665.1,3.75211]
[1727530276648,0.7896,2665.5,2665.1,3.75211]
[1727530277048,0.7896,2665.5,2665.1,7.5042]
[1727530277262,0.03450988,2665.4,2665.1,3.75209]
[1727530277424,0.03450988,2665.4,2665.1,7.50419]
[1727530277627,0.03450988,2665.4,2665.1,5.256388]
[1727530278048,0.03450988,2665.4,2665.1,9.008498]
[1727530278378,0.03450988,2665.4,2665.2,3.75204]
[1727530278864,0.03450988,2665.4,2665.1,5.256388]
[1727530279471,0.03450988,2665.4,2665.1,9.008518]
[1727530279670,0.03450988,2665.4,2665.2,3.75204]
[1727530279828,0.03450988,2665.4,2665.1,5.256388]
[1727530280169,0.03450988,2665.4,2665.1,9.008508]
[1727530281772,0.03450988,2665.4,2665.0,3.75233]
[1727530281983,3.75249,2664.9,2664.4,1.96395093]
[1727530282271,0.7896,2664.8,2664.2,5.00574898]
[1727530282468,6.16107277,2664.8,2664.2,4.41122294]
[1727530282670,6.16107277,2664.8,2664.2,4.41116294]
[1727530282871,3.75278,2664.7,2664.2,3.75339]
[1727530283170,3.75307,2664.5,2664.0,3.75366]
[1727530283370,11.914375,2664.6,2664.0,3.75366]
[1727530283579,0.03355938,2664.4,2664.0,3.75366]
[1727530283786,3.75308,2664.5,2664.0,3.75366]
[1727530283935,0.03355938,2664.3,2664.0,3.75366]
[1727530284273,0.03355938,2664.2,2664.0,7.50732]
[1727530284434,6.54258,2664.6,2664.0,3.75366]
[1727530284633,0.03336186,2664.5,2664.0,3.75366]
[1727530285659,3.78644186,2664.5,2664.0,3.75366]
[1727530287140,3.78642186,2664.5,2663.9,3.75388]
[1727530288573,0.7896,2664.3,2663.9,3.75388]
[1727530289068,0.03320821,2664.2,2663.7,4.54044]
[1727530289278,0.03320821,2664.2,2663.8,0.454044]
[1727530289480,0.7896,2664.3,2663.8,0.454044]
[1727530289680,0.03320821,2664.2,2663.8,4.208044]
[1727530289977,2.7896,2664.3,2663.8,4.208074]
[1727530290143,0.03320821,2664.1,2663.8,0.454044]
[1727530290343,2.7896,2664.3,2663.9,3.75381]
[1727530290956,0.03320821,2664.2,2663.9,3.75381]
[1727530291153,2.7896,2664.3,2663.9,3.75381]
[1727530291370,0.03320821,2664.1,2663.9,3.75381]
[1727530291578,3.75306,2664.5,2664.0,3.75375]
[1727530291783,4.54266,2664.5,2664.0,3.75375]
[1727530292481,0.03317894,2664.4,2664.0,3.75375]
[1727530293041,4.54266,2664.5,2664.0,3.75375]
[1727530296583,4.54266,2664.5,2663.9,4.207831]
[1727530296788,4.54266,2664.5,2664.0,4.1745031]
[1727530297293,4.93550513,2664.5,2664.0,4.1745031]
[1727530299771,4.54266,2664.5,2664.0,4.1745031]
[1727530305115,3.75319,2664.4,2664.0,4.1745031]
[1727530305398,3.75319,2664.4,2663.9,3.75388]
[1727530306807,8.29582,2664.5,2663.9,3.75388]
[1727530307097,3.75329,2664.4,2663.9,3.75388]
[1727530307504,3.75329,2664.4,2663.7,4.54048]
[1727530307505,6.11301149,2664.1,2663.5,3.75436]
[1727530308027,6.11301149,2664.1,2663.3,3.7546]
[1727530308028,0.7732,2663.8,2663.3,3.7546]
[1727530308208,0.7732,2663.8,2663.3,4.130065]
[1727530308699,0.7732,2663.8,2663.4,3.75459]
[1727530308888,0.7732,2663.8,2663.5,3.75438]
[1727530309096,0.7732,2663.8,2663.5,4.5428235]
[1727530309878,0.7732,2663.8,2663.5,0.7884435]
[1727530311375,0.7732,2663.8,2663.5,4.5428735]
[1727530318025,2.7738,2664.0,2663.6,3.75428]
[1727530318195,2.7738,2664.0,2663.6,4.58400335]
[1727530318394,2.7738,2664.0,2663.6,3.75428]
[1727530319834,6.52757,2664.0,2663.6,3.75428]
[1727530321036,6.52757,2664.0,2663.7,3.75406]
[1727530321037,2.7738,2664.0,2663.7,3.75406]
[1727530321252,2.0,2664.0,2663.8,3.75393]
[1727530321405,2.0,2664.0,2663.8,7.50795]
[1727530322236,2.0,2664.0,2663.7,0.375428]
[1727530322237,2.0,2664.4,2664.1,3.75354]
[1727530322445,0.7738,2664.5,2664.2,3.75344]
[1727530322651,0.7738,2664.5,2664.2,4.205884]
[1727530322802,0.7738,2664.5,2664.2,3.75344]
[1727530323243,0.7738,2664.5,2664.1,3.75358]
[1727530323617,0.7738,2664.5,2664.2,3.75339]
[1727530325823,2.8088,2664.7,2664.3,3.75332]
[1727530328150,2.8088,2664.7,2664.2,3.75339]
[1727530328942,6.5616,2664.7,2664.2,3.75339]
[1727530329314,6.5616,2664.7,2664.2,4.581196]
[1727530329722,2.8088,2664.7,2664.3,3.7533]
[1727530330649,2.8088,2664.7,2664.2,4.581196]
[1727530331652,6.56158,2664.7,2664.2,4.581196]
[1727530334528,2.8088,2664.7,2664.2,4.581196]
[1727530334725,2.8088,2664.7,2664.3,0.4581196]
[1727530336460,2.8088,2664.7,2664.3,4.2114296]
[1727530338263,2.8088,2664.7,2664.3,3.75331]
[1727530338720,2.00084255,2664.9,2664.4,0.7561]
[1727530339072,12.15,2665.3,2664.4,0.7561]
[1727530339073,0.8247,2665.1,2664.9,3.75246]
[1727530339221,2.8247,2665.3,2664.9,3.75246]
[1727530339561,6.57663,2665.3,2664.8,4.5087]
[1727530340659,2.8247,2665.3,2664.8,4.5087]
[1727530340959,6.57628,2665.6,2665.1,3.75213]
[1727530341460,6.57628,2665.6,2665.1,7.50426]
[1727530341668,6.57628,2665.6,2665.1,3.75213]
[1727530342190,0.8247,2665.3,2664.8,0.7561]
[1727530342487,4.57672,2665.3,2664.7,7.50545]
[1727530342687,4.57672,2665.3,2664.8,0.375276]
[1727530343774,4.57672,2665.3,2664.7,3.75269]
[1727530344084,3.75214,2665.2,2664.7,3.75269]
[1727530345607,3.75249,2664.9,2664.4,3.75306]
[1727530345945,0.8247,2665.1,2664.3,3.75323]
[1727530346274,2.0,2664.9,2664.4,3.7531]
[1727530346488,2.0,2664.9,2664.5,3.75302]
[1727530347275,0.0332303,2664.8,2664.5,3.75302]
[1727530347456,0.0332303,2664.8,2664.6,3.75281]
[1727530347859,0.8247,2665.1,2664.6,3.75281]
[1727530348062,4.57697,2665.1,2664.5,3.75296]
[1727530348382,0.0331279,2665.0,2664.6,3.7529]
[1727530348966,0.0331279,2665.0,2664.5,3.75296]
[1727530349164,4.57697,2665.1,2664.5,8.46024045]
[1727530349363,4.57697,2665.1,2664.5,4.70728045]
[1727530350058,4.57697,2665.1,2664.5,8.46024045]
[1727530350454,4.57697,2665.1,2664.5,4.70728045]
[1727530350666,0.8247,2665.1,2664.7,3.75263]
[1727530351290,2.0,2665.2,2664.9,3.75245]
[1727530351595,2.0,2665.2,2664.9,8.26286282]
[1727530351757,0.8247,2665.3,2664.9,8.26095]
[1727530351957,0.8247,2665.3,2664.9,4.5085]
[1727530352359,0.8247,2665.3,2664.9,8.26091]
[1727530352560,4.57621,2665.6,2665.0,3.82736448]
[1727530352799,4.57621,2665.6,2665.1,3.75212]
[1727530353608,3.75164,2665.5,2665.1,3.75212]
[1727530353902,3.75179,2665.4,2664.9,4.50845]
[1727530354113,3.75199,2665.3,2664.8,3.75261]
[1727530354272,0.8247,2665.2,2664.8,3.75261]
[1727530354599,4.57648,2665.4,2664.9,3.7524]
[1727530354810,6.57648,2665.4,2664.9,8.18144259]
[1727530354972,4.57648,2665.4,2664.9,4.42904259]
[1727530355382,8.32838,2665.4,2664.9,4.42904259]
[1727530355767,4.57648,2665.4,2664.9,4.42904259]
[1727530355972,8.32838,2665.4,2664.9,4.42904259]
[1727530356190,4.57648,2665.4,2664.9,4.42904259]
[1727530356390,8.32834,2665.4,2664.9,4.42904259]
[1727530357159,8.32839,2665.4,2664.9,4.42904259]
[1727530358071,4.57648,2665.4,2664.9,4.42904259]
[1727530358782,8.32835,2665.4,2664.9,4.42904259]
[1727530358983,4.57648,2665.4,2664.9,4.42904259]
[1727530359859,4.96928471,2665.4,2664.9,4.42904259]
[1727530360106,3.75194,2665.3,2664.9,4.42904259]
[1727530360312,3.75194,2665.3,2664.8,3.75259]
[1727530361576,3.75194,2665.3,2664.9,3.75248]
[1727530361780,4.96937471,2665.4,2664.9,3.75248]
[1727530362067,8.72123471,2665.4,2664.9,3.75248]
[1727530362883,1.21750471,2665.4,2664.9,3.75248]
[1727530363081,1.21750471,2665.4,2664.9,4.578604]
[1727530363285,0.39280471,2665.4,2665.1,4.5299]
[1727530363703,0.39280471,2665.4,2665.1,8.28202]
[1727530364205,0.39280471,2665.4,2665.1,4.5299]
[1727530365009,0.39280471,2665.4,2665.1,3.7521]
[1727530368996,0.39280471,2665.4,2665.2,3.75198]
[1727530369310,0.39280471,2665.4,2665.3,0.750408]
[1727530369604,0.8116,2665.6,2665.3,3.75184]
[1727530369803,0.8116,2665.6,2665.3,7.50367]
[1727530370111,0.8116,2665.6,2665.3,3.75183]
[1727530376034,0.8116,2665.6,2665.2,3.75206]
[1727530376206,3.75165,2665.5,2665.0,3.75227]
[1727530376589,0.818,2665.4,2665.0,3.75227]
[1727530376923,3.75194,2665.3,2664.9,3.75248]
[1727530377533,3.75198,2665.3,2664.8,3.75259]
[1727530380662,6.56978,2665.4,2664.9,3.75246]
[1727530380852,3.75194,2665.3,2664.8,0.81626052]
[1727530381147,0.818,2665.2,2664.8,3.7526]
[1727530381711,1.58607149,2664.9,2664.4,3.75308]
[1727530382018,0.777,2664.7,2664.2,3.75342]
[1727530383211,0.777,2664.3,2664.0,3.7537]
[1727530383912,0.777,2664.3,2663.8,3.75395]
[1727530384231,0.777,2664.3,2663.8,4.33682149]
[1727530384405,0.777,2664.3,2663.9,3.75386]
[1727530385642,0.777,2664.3,2664.0,3.75373]
[1727530388658,0.777,2664.3,2663.8,4.33681149]
[1727530388869,0.777,2664.3,2663.9,3.75386]
[1727530389169,0.777,2664.3,2664.0,3.75374]
[1727530391982,0.777,2664.3,2664.1,3.7536]
[1727530394272,0.777,2664.3,2664.2,3.75347]
[1727530394480,0.39283062,2664.4,2664.2,3.75334]
[1727530394645,0.39283062,2664.4,2664.3,3.75333]
[1727530395894,7.44,2664.8,2664.5,7.5059]
[1727530396186,7.83278159,2664.8,2664.5,3.75295]
[1727530396540,7.83278159,2664.8,2664.6,3.7529]
[1727530397358,0.39278159,2664.8,2664.6,3.7529]
[1727530399086,0.39278159,2664.8,2664.5,3.75295]
[1727530399495,0.39278159,2664.8,2664.5,7.50591]
[1727530399986,0.39278159,2664.8,2664.5,3.75295]
[1727530403658,0.39278159,2664.8,2664.5,7.50592]
[1727530404081,0.39278159,2664.8,2664.5,3.75295]
[1727530404289,0.39278159,2664.8,2664.5,7.50591]
[1727530406401,0.39278159,2664.8,2664.5,3.75295]
[1727530411104,0.39278159,2664.8,2664.4,3.75315]
[1727530412206,0.8209,2664.6,2664.4,3.75315]
[1727530417001,0.8209,2664.6,2664.0,0.8037]
[1727530417002,0.7877,2664.2,2664.0,3.75365]
[1727530417203,0.7877,2664.2,2664.0,7.50732]
[1727530417532,0.7877,2664.2,2664.0,3.75365]
[1727530418304,0.7877,2664.2,2663.8,3.75394]
[1727530418511,0.7877,2664.2,2663.9,3.75387]
[1727530419435,0.7877,2664.2,2664.0,3.75373]
[1727530419619,0.7877,2664.2,2663.8,7.50789]
[1727530419823,0.7877,2664.2,2663.9,3.75376]
[1727530420862,0.7877,2664.2,2663.8,7.50789]
[1727530421160,0.7877,2664.2,2663.8,8.339309]
[1727530421722,0.7877,2664.2,2663.8,8.339319]
[1727530423119,0.7877,2664.2,2663.8,4.585359]
[1727530423358,0.7877,2664.2,2663.8,8.339309]
[1727530423967,0.7877,2664.2,2663.8,4.585359]
[1727530424670,0.7877,2664.2,2663.8,3.75394]
[1727530426069,0.7877,2664.2,2663.8,7.50787]
[1727530426668,0.7877,2664.2,2663.8,3.75393]
[1727530429799,0.7877,2664.2,2663.7,0.8063]
[1727530429954,0.7877,2664.2,2663.8,3.75402]
[1727530430357,0.7877,2664.2,2663.8,3.75396]
[1727530431200,0.7877,2664.2,2663.8,7.50792]
[1727530431387,0.7877,2664.2,2663.8,3.75396]
[1727530432523,4.54118,2664.2,2663.6,3.75422]
[1727530432666,4.54118,2664.2,2663.7,3.7541]
[1727530434709,4.54118,2664.2,2663.8,3.75402]
[1727530435802,4.54118,2664.2,2663.6,4.74252453]
[1727530436033,0.8143,2663.9,2663.3,3.75472]
[1727530436236,0.7932,2663.7,2663.4,3.75449]
[1727530436740,0.7932,2663.7,2663.3,3.75463]
[1727530436943,0.7932,2663.7,2663.3,7.50929]
[1727530437642,0.7932,2663.7,2663.3,3.75463]
[1727530438643,0.7932,2663.6,2663.2,3.75487]
[1727530438815,0.7932,2663.6,2663.1,7.50984]
[1727530439022,0.7932,2663.6,2663.1,7.50985]
[1727530439218,0.7932,2663.6,2663.2,3.75487]
[1727530439419,4.54775,2663.5,2663.0,0.25510257]
[1727530439651,4.54775,2663.5,2663.0,4.01026257]
[1727530440467,0.7932,2663.5,2663.1,3.75499]
[1727530440961,0.58983046,2663.5,2663.1,3.75499]
[1727530441927,0.58983046,2663.5,2663.1,4.53147026]
[1727530442360,2.0,2663.7,2663.3,3.75466]
[1727530443953,2.7932,2663.7,2663.3,3.75466]
[1727530444281,3.75394,2663.9,2663.5,3.75444]
[1727530444282,0.7932,2663.9,2663.5,3.75444]
[1727530444973,0.7932,2663.9,2663.4,4.130006]
[1727530445381,0.7932,2663.9,2663.5,1.02694109]
[1727530446670,4.5471,2663.9,2663.5,1.02694109]
[1727530447051,4.5471,2663.9,2663.4,4.130006]
[1727530448290,0.7932,2663.9,2663.5,3.75444]
[1727530448852,0.7932,2663.9,2663.6,3.75429]
[1727530449449,2.39281513,2664.0,2663.7,3.75414]
[1727530449649,2.39281513,2664.0,2663.7,8.30723]
[1727530449854,2.39281513,2664.0,2663.7,4.55309]
[1727530452684,2.39281513,2664.0,2663.7,0.799]
[1727530452885,2.39281513,2664.0,2663.6,4.1672206]
[1727530453092,0.7932,2663.9,2663.6,7.9214506]
[1727530453294,0.7932,2663.9,2663.7,0.49662206]
[1727530455692,0.7932,2663.9,2663.7,4.25077206]
[1727530456488,2.39281513,2664.0,2663.7,4.25077206]
[1727530456688,2.39281513,2664.0,2663.8,0.84179927]
[1727530460388,2.39281513,2664.0,2663.8,4.59581927]
[1727530460579,2.39281513,2664.0,2663.8,0.84179927]
[1727530460825,2.39281513,2664.0,2663.7,0.49662206]
[1727530461483,2.39281513,2664.0,2663.7,4.25074206]
[1727530462411,2.39281513,2664.0,2663.7,3.75412]
[1727530463210,0.39281513,2664.0,2663.9,3.75389]
[1727530468600,1.18171513,2664.0,2663.6,3.75421]
[1727530468780,4.93548513,2664.0,2663.6,3.75421]
[1727530468984,4.93548513,2664.0,2663.5,3.75445]
[1727530470554,1.18171513,2664.0,2663.5,3.75445]
[1727530471386,1.18171513,2664.0,2663.4,3.75449]
[1727530471387,1.18171513,2664.0,2663.6,3.7543]
[1727530472435,4.93547513,2664.0,2663.6,3.7543]
[1727530472584,6.93547513,2664.0,2663.4,3.75449]
[1727530472788,4.54293,2663.8,2663.4,3.75449]
[1727530473088,0.7889,2663.7,2663.2,3.75478]
[1727530473632,2.0,2663.6,2663.2,3.75478]
[1727530475423,0.7889,2663.5,2663.0,4.01023257]
[1727530475639,0.7889,2663.5,2663.1,3.755]
[1727530476692,0.7889,2663.5,2663.0,4.01023257]
[1727530476897,0.7889,2663.5,2663.2,3.75487]
[1727530477743,0.7889,2663.5,2663.0,8.52949849]
[1727530478427,0.7889,2663.5,2663.0,4.77436849]
[1727530478826,0.7889,2663.5,2663.1,3.75489]
[1727530479142,0.7889,2663.5,2663.0,4.77436849]
[1727530479438,0.7889,2663.5,2663.0,7.76519257]
[1727530480246,0.7889,2663.5,2663.1,3.755]
[1727530481640,0.7889,2663.5,2663.0,4.01012257]
[1727530481833,2.0,2663.6,2663.2,3.75487]
[1727530486764,2.0,2663.6,2663.2,7.50967]
[1727530486947,2.0,2663.6,2663.2,3.7548]
[1727530487971,1.19727707,2663.7,2663.2,5.35528726]
[1727530488177,1.19727707,2663.7,2663.4,3.75457]
[1727530489287,0.39287707,2663.7,2663.4,3.75457]
[1727530489436,6.55829,2663.9,2663.4,3.75457]
[1727530489631,3.75404,2663.8,2663.2,5.35530726]
[1727530489877,3.75404,2663.8,2663.3,3.75469]
[1727530490080,6.55829,2663.9,2663.4,3.75458]
[1727530490481,10.31227,2663.9,2663.4,3.75458]
[1727530490650,2.8044,2663.9,2663.4,3.75458]
[1727530490853,1.19729039,2664.1,2663.6,4.57829]
[1727530491065,1.19729039,2664.1,2663.9,3.7538]
[1727530491364,0.39289039,2664.1,2663.9,3.7538]
[1727530491566,0.39289039,2664.1,2664.0,3.75375]
[1727530492155,0.39289039,2664.1,2663.9,0.90935749]
[1727530494672,0.39289039,2664.1,2663.8,3.7539]
[1727530497483,0.39289039,2664.1,2663.8,7.50786]
[1727530497989,0.39289039,2664.1,2663.8,3.7539]
[1727530498198,0.39289039,2664.1,2663.9,0.8066]
[1727530498362,0.39289039,2664.1,2663.9,4.56037]
[1727530501463,0.39289039,2664.1,2663.9,1.79660149]
[1727530501877,0.39289039,2664.1,2663.9,5.55046149]
[1727530502077,0.39289039,2664.1,2663.9,1.79660149]
[1727530502489,0.39289039,2664.1,2663.9,5.55047149]
[1727530502694,0.39289039,2664.1,2663.9,1.79660149]
[1727530503381,0.39289039,2664.1,2663.8,3.7539]
[1727530503577,0.8206,2664.0,2663.6,3.75423]
[1727530504991,0.8206,2664.0,2663.6,7.50847]
[1727530505999,0.8206,2664.0,2663.6,3.75423]
[1727530506164,0.8206,2664.0,2663.6,7.50845]
[1727530507573,0.8206,2664.0,2663.7,3.75417]
[1727530517139,0.7668,2663.9,2663.5,3.75445]
[1727530518039,0.7668,2663.9,2663.6,3.75429]
[1727530520144,0.7668,2663.9,2663.6,7.50853]
[1727530520446,0.7668,2663.9,2663.6,3.75424]
[1727530520832,0.7668,2663.9,2663.6,7.50848]
[1727530521022,0.7668,2663.9,2663.6,3.75424]
[1727530521836,0.7668,2663.9,2663.6,7.50848]
[1727530522207,0.7668,2663.9,2663.6,3.75424]
[1727530523243,0.7668,2663.9,2663.6,7.50849]
[1727530524109,0.7668,2663.9,2663.6,3.75424]
[1727530524851,0.7668,2663.7,2663.2,3.75477]
[1727530525014,0.7668,2663.7,2663.4,3.75448]
[1727530525350,0.7668,2663.7,2663.4,7.509]
[1727530525842,0.7668,2663.7,2663.5,3.75445]
[1727530532352,0.08906147,2663.6,2663.5,3.75445]
[1727530532855,0.08906147,2663.6,2663.3,3.75473]
[1727530536957,0.08906147,2663.6,2663.1,3.75491]
[1727530537166,0.7623,2663.5,2663.1,3.75501]
[1727530537322,0.7623,2663.5,2663.0,0.25510257]
[1727530537532,0.08816866,2663.4,2663.0,0.25510257]
[1727530537725,0.08816866,2663.4,2663.0,4.01025257]
[1727530537969,0.7623,2663.3,2663.0,0.25510257]
[1727530538262,0.7623,2663.2,2663.0,0.25510257]
[1727530538558,0.85036615,2663.2,2663.0,0.25510257]
[1727530557291,1.67381107,2663.2,2663.0,0.25510257]
[1727530557497,0.7982,2663.1,2663.0,0.25510257]
[1727530557696,0.8858927,2663.1,2663.0,0.25510257]
[1727530559374,0.0876927,2663.1,2663.0,0.25510257]
[1727530561245,0.0876927,2663.1,2663.0,4.01026257]
[1727530562203,0.0876927,2663.1,2663.0,0.25510257]
[1727530567032,0.0876927,2663.1,2663.0,4.01026257]
[1727530567397,0.0876927,2663.1,2663.0,0.25510257]
[1727530569829,0.0876927,2663.1,2663.0,7.27500175]
[1727530570394,0.0876927,2663.1,2663.0,5.68925683]
[1727530570628,3.56900672,2663.6,2663.2,3.75484]
[1727530570999,7.32332672,2663.6,2663.2,3.75484]
[1727530571198,7.32332672,2663.6,2663.0,8.58573257]
[1727530571798,3.56900672,2663.6,2663.1,3.75489]
[1727530572633,3.56900672,2663.6,2663.2,3.75486]
[1727530572835,2.39286417,2663.6,2663.2,3.75486]
[1727530573815,6.14718417,2663.6,2663.2,3.75486]
[1727530574243,6.14718417,2663.6,2663.0,7.55826984]
[1727530574402,7.32332672,2663.6,2663.1,4.51083998]
[1727530575524,2.39286417,2663.6,2663.2,3.75483]
[1727530576602,2.39286417,2663.6,2663.1,4.51083998]
[1727530576807,2.39286417,2663.6,2663.3,4.51583]
[1727530577044,2.39286417,2663.6,2663.3,8.27047]
[1727530577205,2.39286417,2663.6,2663.3,4.51574]
[1727530577405,0.08764146,2663.5,2663.3,4.51574]
[1727530578446,0.08764146,2663.5,2663.4,3.75459]
[1727530578636,0.08764146,2663.5,2663.4,4.65334387]
[1727530578859,0.08764146,2663.5,2663.4,6.23908879]
[1727530579066,0.08764146,2663.5,2663.4,7.00018879]
[1727530585252,2.39279803,2663.9,2663.4,7.00018879]
[1727530585952,0.08811009,2663.8,2663.4,7.00018879]
[1727530586180,3.84221009,2663.8,2663.4,0.7611]
[1727530586721,3.75422,2663.7,2663.4,0.7611]
[1727530586865,4.51492,2663.7,2663.2,4.55014]
[1727530587196,0.08810277,2663.6,2663.3,3.75473]
[1727530587405,3.15349803,2663.9,2663.4,3.75456]
[1727530587901,6.90745803,2663.9,2663.4,3.75456]
[1727530588405,3.84210152,2663.8,2663.3,3.75473]
[1727530591195,3.84210152,2663.8,2663.2,6.13588492]
[1727530591196,3.75426,2663.7,2663.2,4.55014]
[1727530591502,0.8329,2663.6,2663.2,3.75474]
[1727530591713,4.67527152,2663.6,2663.2,3.75474]
[1727530593071,6.67527152,2663.6,2663.2,3.75474]
[1727530594218,6.67527152,2663.6,2663.1,3.75497]
[1727530595301,2.92095152,2663.6,2663.2,3.75486]
[1727530597179,2.92095152,2663.6,2663.2,3.75481]
[1727530597693,0.08805152,2663.6,2663.5,3.75445]
[1727530597999,3.18169803,2663.9,2663.6,3.75422]
[1727530598514,2.0,2663.9,2663.7,3.7541]
[1727530599895,2.0,2663.9,2663.6,3.75424]
[1727530600101,2.0,2663.9,2663.8,3.75403]
[1727530600406,2.0,2663.9,2663.7,7.50817]
[1727530600604,0.7889,2664.1,2663.7,7.50817]
[1727530601087,0.7889,2664.1,2663.7,3.75408]
[1727530601270,0.7889,2664.1,2663.7,7.50816]
[1727530601526,0.7889,2664.1,2663.7,3.75408]
[1727530602245,0.7889,2664.1,2663.5,6.11570492]
[1727530602458,0.7889,2664.1,2663.6,3.75431]
[1727530604450,0.7889,2664.1,2663.5,4.52996]
[1727530604758,0.7889,2664.1,2663.7,3.75415]
[1727530605180,4.54254,2664.1,2663.6,3.75421]
[1727530606980,0.7889,2664.1,2663.7,3.75416]
[1727530607655,0.08816133,2664.0,2663.7,7.50832]
[1727530608286,0.08816133,2664.0,2663.7,3.75416]
[1727530609284,0.08816133,2664.0,2663.7,7.50826]
[1727530609784,0.08816133,2664.0,2663.8,3.75401]
[1727530611492,0.08816133,2664.0,2663.9,3.75389]
[1727530611895,2.0,2664.2,2664.0,3.75372]
[1727530612049,0.39278599,2664.3,2664.1,3.75361]
[1727530612387,0.8181,2664.7,2664.3,3.75332]
[1727530616602,4.5709,2664.7,2664.2,4.54955]
[1727530616893,0.8181,2664.7,2664.3,3.7533]
[1727530617307,0.8181,2664.7,2664.3,4.6210682]
[1727530617604,0.3927222,2664.8,2664.6,0.8013]
[1727530617818,0.3927222,2664.8,2664.6,4.55413]
[1727530618118,0.3927222,2664.8,2664.7,4.55406]
[1727530618488,2.0,2665.1,2664.8,3.75254]
[1727530619912,2.0,2665.1,2664.7,0.8013]
[1727530621420,2.0,2665.1,2664.7,4.55404]
[1727530622303,0.08091872,2665.0,2664.7,4.55404]
[1727530622509,0.08091872,2665.0,2664.7,5.54329849]
[1727530623523,0.08091872,2665.0,2664.8,3.75258]
[1727530623965,3.75492522,2665.3,2664.8,3.75258]
[1727530624080,0.08091872,2664.9,2664.8,3.75258]
[1727530624286,3.75197,2665.3,2664.8,3.75258]
[1727530624512,0.08091872,2664.9,2664.8,3.75258]
[1727530624711,3.75197,2665.3,2664.8,4.84074834]
[1727530624985,0.08091872,2665.2,2664.8,4.84074834]
[1727530625381,3.75206,2665.2,2664.8,4.84074834]
[1727530625625,0.89421872,2665.1,2664.8,4.84074834]
[1727530626117,0.89421872,2665.1,2664.8,1.08816834]
[1727530626320,3.75236,2665.0,2664.5,3.75296]
[1727530626521,3.75236,2665.0,2664.4,3.7531]
[1727530626522,0.8133,2664.8,2664.4,3.7531]
[1727530626825,0.08088209,2664.7,2664.4,3.7531]
[1727530627114,0.8133,2664.8,2664.5,0.37531]
[1727530627318,0.08088209,2664.7,2664.5,0.37531]
[1727530627491,0.8133,2664.8,2664.5,0.37531]
[1727530627718,0.08088209,2664.7,2664.6,3.75283]
[1727530627936,4.56572,2665.0,2664.5,0.37531]
[1727530628085,0.08081616,2664.7,2664.5,0.37531]
[1727530628429,6.15146492,2665.0,2664.5,0.37531]
[1727530628609,0.08081616,2664.6,2664.5,0.37531]
[1727530629128,6.15146492,2665.0,2664.5,0.37531]
[1727530629327,0.08081616,2664.6,2664.5,0.37531]